[Event "EYCC O18-ch 2024"]
[Site "Prague"]
[Date "2024.08.26"]
[Round "5.10"]
[White "Vergara Anton, Diego"]
[Black "Kuti, Oliver"]
[Result "1-0"]
[ECO "A49"]
[WhiteElo "2416"]
[BlackElo "2114"]
[Annotator "RC"]
[PlyCount "113"]
[EventDate "2024.08.19"]
[EventType "swiss"]
[EventCountry "CZE"]
[SourceTitle "playchess.com"]
[Source "ChessBase"]
[SourceQuality "1"]
[TimeControl "5400+30"]

1. d4 {[%emt 0:00:04]} Nf6 {[%emt 0:00:07]} 2. Nf3 {[%emt 0:00:05]} g6 {[%emt 0:00:06]} 3. g3 {[%emt 0:00:07]} b6 {[%emt 0:00:08]} 4. Bg2 {[%emt 0:00:12]} Bb7 {[%emt 0:00:04]} 5. O-O {[%emt 0:00:15]} Bg7 {[%emt 0:00:04]} 6. Re1 {[%emt 0:01:53]} O-O {[%emt 0:00:29]} 7. Nbd2 {[%emt 0:02:29]} Ne4 {[%emt 0:01:33]} 8. Ng5 {[%emt 0:02:25]} Nd6 {[%emt 0:00:45]} 9. e4 {[%emt 0:14:23]} Bxd4 {[%emt 0:09:15]} 10. e5 {[%emt 0:09:20]} Bxe5 {[%emt 0:00:18]} 11. Bxb7 {[%emt 0:02:06]} Nxb7 {[%emt 0:00:08]} 12. Rxe5 {[%emt 0:00:32]} f6 {[%emt 0:00:09]} 13. Ndf3 {[%emt 0:08:58]} e6 {[%emt 0:30:32]} 14. Re1 {[%emt 0:07:20]} fxg5 {[%emt 0:00:26]} 15. Bxg5 {[%emt 0:00:08]} Qc8 {[%emt 0:06:24]} 16. Bh6 {[%emt 0:00:26]} Re8 {[%emt 0:02:24]} 17. Qd4 {[%emt 0:01:12]} Re7 {[%emt 0:00:21]} 18. Qh4 {[%emt 0:02:14]} Nc6 {[%emt 0:00:35]} 19. Ne5 {[%emt 0:01:46]} Qe8 {[%emt 0:03:25]} 20. Ng4 {[%emt 0:00:11]} Rf7 {[%emt 0:11:41]} 21. Nf6+ {[%emt 0:01:17]} Rxf6 {[%emt 0:00:04]} 22. Qxf6 {[%emt 0:00:02]} Qf7 {[%emt 0:01:05]} 23. Qxf7+ {[%emt 0:00:45]} Kxf7 {[%emt 0:00:02]} 24. Rad1 {[%emt 0:00:06]} d6 {[%emt 0:00:43]} 25. Rd3 {[%emt 0:01:48]} Ke7 {[%emt 0:04:51]} 26. Bg5+ {[%emt 0:03:19]} Kd7 {[%emt 0:00:32]} 27. Rf3 {[%emt 0:01:17]} Ne5 {[%emt 0:00:46]} 28. Rxe5 {[%emt 0:02:13]} dxe5 {[%emt 0:00:08]} 29. Rf7+ {[%emt 0:00:03]} Kc6 {[%emt 0:02:04]} 30. Rxh7 {[%emt 0:00:07]} Rg8 {[%emt 0:01:29]} 31. Bf6 {[%emt 0:00:27]} e4 {[%emt 0:00:33]} 32. Be5 {[%emt 0:00:46]} Nd6 {[%emt 0:00:19]} 33. Bxd6 {[%emt 0:01:37]} Kxd6 {[%emt 0:00:34]} 34. Kf1 {[%emt 0:00:11]} Rf8 {[%emt 0:04:24]} 35. Ke2 {[%emt 0:00:06]} g5 {[%emt 0:00:49]} 36. Rg7 {[%emt 0:03:16]} Rf5 {[%emt 0:01:29]} 37. h4 {[%emt 0:03:48]} gxh4 {[%emt 0:00:09]} 38. gxh4 {[%emt 0:00:01]} Rf4 {[%emt 0:01:19]} 39. h5 {[%emt 0:00:20]} Rh4 {[%emt 0:03:40]} 40. Rh7 {[%emt 0:00:02]} a5 {[%emt 0:01:25]} 41. h6 {[%emt 0:00:42]} Kc6 {[%emt 0:00:48]} 42. Ke3 {[%emt 0:00:29]} Kd6 {[%emt 0:00:44]} 43. Rh8 {[%emt 0:00:03]} Kc6 {[%emt 0:01:29]} 44. h7 {[%emt 0:01:31]} Kd7 {[%emt 0:00:38]} 45. Kd4 {[%emt 0:00:30]} e3+ {[%emt 0:02:39]} 46. Kxe3 {[%emt 0:00:05]} Rh3+ {[%emt 0:03:39]} 47. f3 {[%emt 0:00:39]} Rh4 {[%emt 0:00:08]} 48. a4 {[%emt 0:00:52]} Rh3 {[%emt 0:01:42]} 49. c3 {[%emt 0:00:16]} Rh4 {[%emt 0:00:17]} 50. b4 {[%emt 0:00:36]} axb4 {[%emt 0:01:55]} 51. cxb4 {[%emt 0:00:03]} Rh5 {[%emt 0:00:23]} 52. a5 {[%emt 0:00:50]} bxa5 {[%emt 0:00:10]} 53. bxa5 {[%emt 0:00:06]} Kc6 {[%emt 0:00:53]} 54. a6 {[%emt 0:00:04]} Kb6 {[%emt 0:01:44]} 55. Rb8+ {[%emt 0:00:07]} Kxa6 {[%emt 0:00:13]} 56. h8=Q {[%emt 0:00:06]} Rxh8 57. Rxh8 1-0

[Event "EYCC O18-ch 2024"]
[Site "Prague"]
[Date "2024.08.26"]
[Round "5.10"]
[White "Hercegovac, Neven"]
[Black "Dehtiarov, Roman"]
[Result "1/2-1/2"]
[ECO "B67"]
[WhiteElo "2278"]
[BlackElo "2308"]
[Annotator "RC"]
[PlyCount "123"]
[EventDate "2024.08.19"]
[EventType "swiss"]
[EventCountry "CZE"]
[SourceTitle "playchess.com"]
[Source "ChessBase"]
[SourceQuality "1"]
[TimeControl "5400+30"]

1. e4 {[%emt 0:00:03]} c5 {[%emt 0:00:07]} 2. Nf3 {[%emt 0:00:05]} d6 {[%emt 0:00:10]} 3. d4 {[%emt 0:00:05]} cxd4 {[%emt 0:00:10]} 4. Nxd4 {[%emt 0:00:05]} Nf6 {[%emt 0:00:12]} 5. Nc3 {[%emt 0:00:04]} Nc6 {[%emt 0:00:12]} 6. Bg5 {[%emt 0:00:06]} e6 {[%emt 0:00:16]} 7. Qd2 {[%emt 0:00:10]} a6 {[%emt 0:00:08]} 8. O-O-O {[%emt 0:00:08]} Bd7 {[%emt 0:00:06]} 9. Kb1 {[%emt 0:00:19]} b5 {[%emt 0:00:49]} 10. Nxc6 {[%emt 0:00:21]} Bxc6 {[%emt 0:00:08]} 11. f3 {[%emt 0:00:06]} Be7 {[%emt 0:01:51]} 12. h4 {[%emt 0:00:18]} Rc8 {[%emt 0:03:05]} 13. Ne2 {[%emt 0:00:20]} Bb7 {[%emt 0:02:19]} 14. Nd4 {[%emt 0:00:05]} O-O {[%emt 0:03:02]} 15. g4 {[%emt 0:00:30]} Nd7 {[%emt 0:00:45]} 16. Qh2 {[%emt 0:00:17]} Ne5 {[%emt 0:05:53]} 17. Bxe7 {[%emt 0:07:57]} Qxe7 {[%emt 0:00:08]} 18. g5 {[%emt 0:00:23]} Nc4 {[%emt 0:14:17]} 19. Bd3 {[%emt 0:03:55]} Qc7 {[%emt 0:23:17]} 20. Bxc4 {[%emt 0:16:41]} bxc4 {[%emt 0:00:11]} 21. c3 {[%emt 0:01:12]} Qe7 {[%emt 0:01:40]} 22. Rhe1 {[%emt 0:18:31]} f6 {[%emt 0:07:04]} 23. gxf6 {[%emt 0:04:34]} Rxf6 {[%emt 0:00:27]} 24. Rg1 {[%emt 0:01:35]} Kh8 {[%emt 0:07:03]} 25. Rg5 {[%emt 0:01:27]} Rcf8 {[%emt 0:03:35]} 26. Qe2 {[%emt 0:04:27]} h6 {[%emt 0:02:11]} 27. Rg3 {[%emt 0:01:00]} Rf4 {[%emt 0:07:44]} 28. Rdg1 {[%emt 0:01:03]} R8f7 {[%emt 0:01:59]} 29. Rg6 {[%emt 0:04:25]} R4f6 {[%emt 0:01:39]} 30. h5 {[%emt 0:01:12]} Rxg6 {[%emt 0:03:24]} 31. Rxg6 {[%emt 0:04:52]} Qh4 {[%emt 0:02:23]} 32. Rxe6 {[%emt 0:01:14]} Qxh5 {[%emt 0:01:02]} 33. Rxd6 {[%emt 0:03:02]} Qh1+ {[%emt 0:01:56]} 34. Kc2 {[%emt 0:00:03]} Rc7 {[%emt 0:00:27]} 35. Ne6 {[%emt 0:04:03]} Rf7 {[%emt 0:03:31]} 36. Rd8+ {[%emt 0:03:15]} Kh7 {[%emt 0:00:05]} 37. Nf8+ {[%emt 0:00:06]} Kg8 {[%emt 0:01:58]} 38. Ng6+ {[%emt 0:00:36]} Kh7 {[%emt 0:00:04]} 39. Ne5 {[%emt 0:00:39]} Rf6 {[%emt 0:00:19]} 40. Rd2 {[%emt 0:02:15]} Qh5 {[%emt 0:01:48]} 41. Ng4 {[%emt 0:02:12]} Rf4 {[%emt 0:00:28]} 42. Rd4 {[%emt 0:00:53]} Qh1 {[%emt 0:01:40]} 43. Ne5 {[%emt 0:02:07]} Rh4 {[%emt 0:00:36]} 44. Rd2 {[%emt 0:00:39]} Rxe4 {[%emt 0:00:53]} 45. fxe4 {[%emt 0:01:20]} Bxe4+ {[%emt 0:00:01]} 46. Nd3 {[%emt 0:00:22]} cxd3+ {[%emt 0:00:01]} 47. Rxd3 {[%emt 0:00:07]} Bg6 {[%emt 0:00:23]} 48. Kb3 {[%emt 0:00:53]} Qb7+ {[%emt 0:00:08]} 49. Ka3 {[%emt 0:00:05]} Bxd3 {[%emt 0:00:08]} 50. Qxd3+ {[%emt 0:00:01]} g6 {[%emt 0:00:09]} 51. c4 {[%emt 0:00:30]} h5 {[%emt 0:02:16]} 52. c5 {[%emt 0:00:08]} h4 {[%emt 0:01:10]} 53. b3 {[%emt 0:03:06]} Qe7 {[%emt 0:00:50]} 54. Qd6 {[%emt 0:00:55]} Qxd6 {[%emt 0:00:17]} 55. cxd6 {[%emt 0:00:02]} h3 {[%emt 0:00:05]} 56. d7 {[%emt 0:00:05]} h2 {[%emt 0:00:02]} 57. d8=Q {[%emt 0:00:04]} h1=Q 58. Qe7+ {[%emt 0:00:54]} Kh6 {[%emt 0:01:01]} 59. Qf8+ {[%emt 0:00:21]} Kh7 {[%emt 0:00:10]} 60. Qf7+ {[%emt 0:00:36]} Kh6 {[%emt 0:00:02]} 61. Qf8+ {[%emt 0:00:24]} Kh7 {[%emt 0:00:01]} 62. Qf7+ {[%emt 0:00:07]} 1/2-1/2

[Event "EYCC O18-ch 2024"]
[Site "Prague"]
[Date "2024.08.26"]
[Round "5.11"]
[White "Valiyev, Shahin"]
[Black "Zlatkov, Anton"]
[Result "1/2-1/2"]
[ECO "B47"]
[WhiteElo "2245"]
[BlackElo "2297"]
[Annotator "RC"]
[PlyCount "63"]
[EventDate "2024.08.19"]
[EventType "swiss"]
[EventCountry "CZE"]
[SourceTitle "playchess.com"]
[Source "ChessBase"]
[SourceQuality "1"]
[TimeControl "5400+30"]

1. e4 {[%emt 0:00:09]} c5 {[%emt 0:00:09]} 2. Nf3 {[%emt 0:00:12]} Nc6 {[%emt 0:00:11]} 3. d4 {[%emt 0:00:15]} cxd4 {[%emt 0:00:19]} 4. Nxd4 {[%emt 0:00:17]} e6 {[%emt 0:00:17]} 5. Nc3 {[%emt 0:00:58]} Qc7 {[%emt 0:00:05]} 6. g3 {[%emt 0:00:59]} a6 {[%emt 0:00:06]} 7. Bg2 {[%emt 0:00:27]} Nf6 {[%emt 0:00:13]} 8. O-O {[%emt 0:01:00]} Nxd4 {[%emt 0:00:03]} 9. Qxd4 {[%emt 0:00:05]} Bc5 {[%emt 0:00:05]} 10. Bf4 {[%emt 0:02:08]} d6 {[%emt 0:01:09]} 11. Qd2 {[%emt 0:01:00]} h6 {[%emt 0:00:11]} 12. Rad1 {[%emt 0:08:48]} e5 {[%emt 0:00:21]} 13. Be3 {[%emt 0:00:05]} Bxe3 {[%emt 0:00:35]} 14. fxe3 {[%emt 0:00:28]} Be6 {[%emt 0:00:05]} 15. Qxd6 {[%emt 0:03:22]} Rc8 {[%emt 0:00:05]} 16. h3 {[%emt 0:05:04]} Nd7 {[%emt 0:19:35]} 17. Rf2 {[%emt 0:06:51]} Qxd6 {[%emt 0:05:13]} 18. Rxd6 {[%emt 0:00:42]} Ke7 {[%emt 0:00:15]} 19. Rd1 {[%emt 0:01:57]} Rxc3 {[%emt 0:03:55]} 20. bxc3 {[%emt 0:00:05]} Rc8 {[%emt 0:00:07]} 21. Rb1 {[%emt 0:38:40]} b5 {[%emt 0:03:41]} 22. a4 {[%emt 0:05:46]} bxa4 {[%emt 0:02:01]} 23. Ra1 {[%emt 0:01:22]} Nb6 {[%emt 0:17:36]} 24. Ra3 {[%emt 0:02:13]} Bd7 {[%emt 0:00:22]} 25. Bf1 {[%emt 0:03:23]} Bb5 {[%emt 0:01:29]} 26. Bd3 {[%emt 0:01:27]} Nc4 {[%emt 0:08:38]} 27. Bxc4 {[%emt 0:00:10]} Rxc4 {[%emt 0:00:04]} 28. Rd2 {[%emt 0:00:48]} Rxe4 {[%emt 0:01:14]} 29. Kf2 {[%emt 0:00:11]} f5 {[%emt 0:05:46]} 30. h4 Bc6 {[%emt 0:00:54]} 31. Rd1 {[%emt 0:05:45]} Rc4 {[%emt 0:01:28]} 32. Rb1 {[%emt 0:00:41]} 1/2-1/2

[Event "EYCC O18-ch 2024"]
[Site "Prague"]
[Date "2024.08.26"]
[Round "5.11"]
[White "Grgantov, Marin"]
[Black "Palczert, Matyas"]
[Result "0-1"]
[ECO "C28"]
[WhiteElo "2110"]
[BlackElo "2341"]
[Annotator "RC"]
[PlyCount "116"]
[EventDate "2024.08.19"]
[EventType "swiss"]
[EventCountry "CZE"]
[SourceTitle "playchess.com"]
[Source "ChessBase"]
[SourceQuality "1"]
[TimeControl "5400+30"]

1. e4 {[%emt 0:02:39]} e5 {[%emt 0:00:10]} 2. Nc3 {[%emt 0:00:22]} Nf6 {[%emt 0:00:15]} 3. Bc4 {[%emt 0:00:06]} Nc6 {[%emt 0:00:23]} 4. d3 {[%emt 0:00:07]} Na5 {[%emt 0:00:46]} 5. Qf3 {[%emt 0:00:33]} c6 {[%emt 0:02:10]} 6. Nge2 {[%emt 0:00:56]} b5 {[%emt 0:00:52]} 7. Bb3 {[%emt 0:00:37]} d6 {[%emt 0:01:27]} 8. h3 {[%emt 0:04:01]} Nxb3 {[%emt 0:03:53]} 9. axb3 {[%emt 0:00:08]} Be7 {[%emt 0:01:31]} 10. O-O {[%emt 0:03:59]} O-O {[%emt 0:00:33]} 11. Ng3 {[%emt 0:07:43]} Ne8 {[%emt 0:18:56]} 12. Qe3 {[%emt 0:08:58]} b4 {[%emt 0:15:29]} 13. Nd1 {[%emt 0:09:13]} d5 {[%emt 0:03:37]} 14. exd5 {[%emt 0:08:05]} Qxd5 {[%emt 0:00:25]} 15. Re1 {[%emt 0:02:42]} f6 {[%emt 0:01:45]} 16. Rxa7 {[%emt 0:12:27]} Rxa7 {[%emt 0:17:14]} 17. Qxa7 {[%emt 0:00:08]} Bc5 {[%emt 0:00:26]} 18. Qa4 {[%emt 0:09:14]} f5 {[%emt 0:03:06]} 19. Bd2 {[%emt 0:07:39]} Qd6 {[%emt 0:02:02]} 20. Be3 {[%emt 0:12:03]} Bd4 {[%emt 0:11:08]} 21. Bxd4 {[%emt 0:00:50]} exd4 {[%emt 0:00:16]} 22. Qa5 {[%emt 0:00:41]} c5 {[%emt 0:01:18]} 23. Qa8 {[%emt 0:02:07]} Nf6 {[%emt 0:02:04]} 24. Qf3 {[%emt 0:00:06]} g6 {[%emt 0:00:27]} 25. Qe2 {[%emt 0:01:10]} Bd7 {[%emt 0:00:57]} 26. Qe5 {[%emt 0:01:47]} Qc6 {[%emt 0:00:49]} 27. Qf4 {[%emt 0:01:11]} Nd5 {[%emt 0:02:38]} 28. Qg5 {[%emt 0:00:38]} Qf6 {[%emt 0:02:41]} 29. Qxf6 {[%emt 0:00:35]} Rxf6 {[%emt 0:00:15]} 30. Re5 {[%emt 0:01:21]} Bc6 {[%emt 0:00:41]} 31. Ne2 {[%emt 0:00:38]} f4 {[%emt 0:02:27]} 32. f3 {[%emt 0:01:24]} Bb7 {[%emt 0:01:06]} 33. Nf2 {[%emt 0:01:01]} Rf5 {[%emt 0:03:32]} 34. Rxf5 {[%emt 0:00:29]} gxf5 {[%emt 0:00:01]} 35. h4 {[%emt 0:00:13]} Kf7 {[%emt 0:00:50]} 36. Nh3 {[%emt 0:00:30]} Ne3 {[%emt 0:00:10]} 37. Ng5+ {[%emt 0:00:17]} Ke7 {[%emt 0:00:25]} 38. Nxh7 {[%emt 0:01:11]} Bd5 {[%emt 0:00:55]} 39. Nxf4 {[%emt 0:00:36]} Bg8 {[%emt 0:00:01]} 40. Ng5 {[%emt 0:00:20]} Nxc2 {[%emt 0:00:19]} 41. Kf2 {[%emt 0:00:48]} Ne3 {[%emt 0:00:14]} 42. Ne2 {[%emt 0:00:54]} Bxb3 {[%emt 0:01:07]} 43. h5 {[%emt 0:00:26]} Nd1+ {[%emt 0:01:15]} 44. Ke1 {[%emt 0:00:00]} Nxb2 {[%emt 0:00:06]} 45. Kd2 {[%emt 0:00:36]} c4 {[%emt 0:01:42]} 46. Nxd4 {[%emt 0:00:57]} c3+ {[%emt 0:00:06]} 47. Ke2 {[%emt 0:00:30]} Bd1+ {[%emt 0:00:39]} 48. Ke1 {[%emt 0:00:33]} Ba4 {[%emt 0:00:34]} 49. h6 {[%emt 0:00:51]} Nxd3+ {[%emt 0:00:04]} 50. Ke2 {[%emt 0:00:17]} Nf4+ {[%emt 0:00:12]} 51. Ke3 {[%emt 0:00:28]} Nxg2+ 52. Kf2 Nf4 {[%emt 0:00:38]} 53. h7 {[%emt 0:00:05]} Ng6 {[%emt 0:00:03]} 54. Nge6 {[%emt 0:01:38]} c2 {[%emt 0:01:29]} 55. Nf4 {[%emt 0:00:03]} Nh8 {[%emt 0:00:13]} 56. Nd3 {[%emt 0:00:17]} b3 {[%emt 0:00:37]} 57. Nxc2 {[%emt 0:01:10]} bxc2 {[%emt 0:00:06]} 58. Ke2 {[%emt 0:00:06]} Bb5 {[%emt 0:00:08]} 0-1

[Event "EYCC O18-ch 2024"]
[Site "Prague"]
[Date "2024.08.26"]
[Round "5.12"]
[White "Babula, Vlastimil"]
[Black "Lang, Simon"]
[Result "1-0"]
[ECO "C11"]
[WhiteElo "2503"]
[BlackElo "2138"]
[Annotator "TA"]
[PlyCount "61"]
[EventDate "2024.08.19"]
[EventType "swiss"]
[EventCountry "CZE"]
[SourceTitle "playchess.com"]
[Source "ChessBase"]
[SourceQuality "1"]
[TimeControl "5400+30"]

{[%evp 13,61,0,17,12,27,22,32,30,25,14,19,19,68,58,62,45,116,113,117,110,158,151,189,180,184,182,196,174,206,197,282,77,258,179,200,142,333,156,179,160,280,281,1085,514,29987,29988,29989,29990,29996,210]} 1. e4 {[%emt 0:00:04][%cal Be2e4,Be4e5][%mdl 32]} e6 {[%emt 0:00:29]} 2. d4 {[%emt 0:00:14]} d5 {[%emt 0:00:19]} 3. Nc3 {[%emt 0:00:06][%cal Bb1c3,Bc3e2,Be2d4][%mdl 32]} Nf6 {[%emt 0:01:07]} 4. e5 {[%emt 0:00:13]} Nfd7 {[%emt 0:00:22]} 5. f4 {[%emt 0:00:06]} c5 {[%emt 0:00:53]} 6. Nf3 {[%emt 0:00:06]} Nc6 {[%emt 0:00:47]} 7. Be3 {[%emt 0:00:05]} a6 {[%emt 0:01:13]} 8. Ne2 {[%emt 0:00:20]} Qb6 {[%emt 0:01:54]} 9. Qc1 {[%emt 0:01:06]} Be7 {[%emt 0:03:02]} 10. c3 {[%emt 0:01:03] White is slightly better.} O-O {[%emt 0:01:43]} 11. dxc5 {[%emt 0:02:05]} Bxc5 {[%emt 0:04:33]} 12. Ned4 $1 {[%emt 0:00:32]} f6 {[%emt 0:05:12]} (12... Nxd4 $11 13. cxd4 Be7) 13. b4 $14 {[%emt 0:12:29]} Bxd4 {[%emt 0:35:36]} 14. Nxd4 {[%emt 0:01:00]} fxe5 {[%emt 0:09:50]} (14... Nd8 $14) 15. Nxe6 $16 {[%emt 0:02:20]} d4 {[%emt 0:00:17]} 16. Nxf8 {[%emt 0:00:17]} Nxf8 {[%emt 0:00:49]} (16... dxe3 $142 17. Nxd7 Bxd7) 17. Bf2 $1 {[%emt 0:01:38]} Be6 {[%emt 0:01:31]} 18. fxe5 {[%emt 0:23:08]} (18. Bd3 Rc8) 18... Bd5 {[%emt 0:04:33]} 19. cxd4 {[%emt 0:10:49] a3 is the strong threat.} Ne6 {[%emt 0:06:33]} 20. a3 {[%emt 0:05:02]} Rf8 {[%emt 0:04:12][%cal Of8f2] [#] Strongly threatening ...Rxf2!} 21. Qd2 {[%emt 0:01:43]} Rf4 {[%emt 0:06:57]} (21... Qd8 {is a better defense.} 22. h4 h6) 22. Be2 $2 {[%emt 0:05:42]} (22. Be3 $18 {and White stays clearly on top.} Rg4 23. h3) 22... Bxg2 $2 {[%emt 0:01:16]} (22... Ncxd4 $16 23. Rc1 (23. O-O Bxg2 24. Rfd1 Bd5 $17) 23... Nc2+ (23... Bxg2 $2 24. Bxd4 Qxd4 25. Qxd4 $18) 24. Rxc2 Qxf2+ 25. Kd1 Bb3) 23. Rg1 {[%emt 0:04:48]} Bd5 {[%emt 0:00:17][%cal Rc6d4]} 24. Be3 {[%emt 0:02:57]} Re4 {[%emt 0:01:25] A mistake that costs the game.} (24... Nexd4 $16 25. Rg3 (25. Bxf4 $2 {loses.} Nf3+ 26. Kd1 Nxd2 $19) (25. Rxg7+ $2 Kxg7 26. O-O-O Nb3+ 27. Kb2 Nxd2 $19) 25... Rh4 26. Bxd4 Rxd4) 25. O-O-O {[%emt 0:03:06][%cal Ba1d1,Bd1c1,Bc1c8][%mdl 32]} (25. Bd3 $18 {has better winning chances.} Rh4 26. Qf2) 25... Ncxd4 {[%emt 0:06:23]} 26. Kb2 {[%emt 0:01:00]} Qc6 {[%emt 0:00:52] [#]} (26... Qc7 $16 {might work better.} 27. Bxd4 Nxd4) 27. Rc1 $1 $18 {[%emt 0:02:36]} Qa4 {[%emt 0:00:05]} (27... Qe8 28. Bxd4 Nxd4) 28. Bd1 {[%emt 0:00:06]} (28. Rc8+ $142 Kf7 29. Bd1) 28... Bb3 {[%emt 0:01:14]} (28... Qd7 $18 29. Rg4 Rxg4 30. Bxg4 h5 31. Bxh5 Nb3 32. Rc8+ Nf8) 29. Rc8+ {[%emt 0:01:17] White mates.} Kf7 {[%emt 0:00:02]} 30. Qf2+ {[%emt 0:01:18]} Ke7 {[%emt 0:01:05] [#]} 31. Rxg7+ $3 {[%emt 0:00:24][%mdl 512] Weighted Error Value: White=0.43/Black=0.68.  Loses game:     	---       	Black=2      Missed win:     	White=2     	---        Mistake:       	White=1     	Black=7      Inaccurate:     	White=1     	---        OK:         	White=8     	Black=7      Best:        	White=3     	Black=1      Strong:       	White=2     	---} 1-0

[Event "EYCC O18-ch 2024"]
[Site "Prague"]
[Date "2024.08.26"]
[Round "5.12"]
[White "Kreken, Eivind Grunt"]
[Black "Bermudez Ureba, Juan Diego"]
[Result "1/2-1/2"]
[ECO "A35"]
[WhiteElo "2294"]
[BlackElo "2183"]
[Annotator "RC"]
[PlyCount "31"]
[EventDate "2024.08.19"]
[EventType "swiss"]
[EventCountry "CZE"]
[SourceTitle "playchess.com"]
[Source "ChessBase"]
[SourceQuality "1"]
[TimeControl "5400+30"]

1. c4 {[%emt 0:00:04]} c5 {[%emt 0:01:05]} 2. Nf3 {[%emt 0:02:13]} Nf6 {[%emt 0:07:27]} 3. Nc3 {[%emt 0:01:33]} Nc6 {[%emt 0:07:32]} 4. d4 {[%emt 0:03:08]} cxd4 {[%emt 0:00:08]} 5. Nxd4 {[%emt 0:00:06]} d5 {[%emt 0:01:30]} 6. cxd5 {[%emt 0:05:28]} Nxd5 {[%emt 0:00:26]} 7. Nxc6 {[%emt 0:01:53]} bxc6 {[%emt 0:00:04]} 8. g3 {[%emt 0:04:05]} Bb7 {[%emt 0:20:42]} 9. Bg2 {[%emt 0:03:20]} e6 {[%emt 0:08:00]} 10. O-O {[%emt 0:05:22]} Be7 {[%emt 0:09:59]} 11. Bd2 {[%emt 0:05:23]} O-O {[%emt 0:00:30]} 12. Rc1 {[%emt 0:04:00]} c5 {[%emt 0:03:34]} 13. Na4 {[%emt 0:13:56]} Rc8 {[%emt 0:00:15]} 14. b3 {[%emt 0:03:34]} Ba6 {[%emt 0:00:59]} 15. Nb2 {[%emt 0:04:25]} Nb6 {[%emt 0:03:48]} 16. Bf3 {[%emt 0:09:53]} 1/2-1/2

[Event "EYCC O18-ch 2024"]
[Site "Prague"]
[Date "2024.08.26"]
[Round "5.13"]
[White "Malek, Jan"]
[Black "Seidl, Jan"]
[Result "1-0"]
[ECO "D45"]
[WhiteElo "2482"]
[BlackElo "2276"]
[Annotator "TA"]
[PlyCount "49"]
[EventDate "2024.08.19"]
[EventType "swiss"]
[EventCountry "CZE"]
[SourceTitle "playchess.com"]
[Source "ChessBase"]
[SourceQuality "1"]
[TimeControl "5400+30"]

{[%evp 21,49,6,20,19,8,22,37,27,47,24,22,13,104,125,113,140,141,146,148,99,734,742,715,733,868,551,849,847,714,739]} 1. d4 {[%emt 0:00:01]} d5 {[%emt 0:00:42]} 2. c4 {[%emt 0:00:07]} e6 {[%emt 0:00:03]} 3. Nf3 {[%emt 0:00:11]} Nf6 {[%emt 0:00:05]} 4. Nc3 {[%emt 0:00:05]} c6 {[%emt 0:01:11]} 5. e3 {[%emt 0:00:08]} Nbd7 {[%emt 0:00:42]} 6. Qc2 {[%emt 0:00:08]} Bd6 {[%emt 0:00:07]} 7. Be2 O-O {[%emt 0:00:57]} 8. O-O {[%emt 0:00:13]} dxc4 {[%emt 0:00:18]} 9. Bxc4 {[%emt 0:00:06]} b5 10. Be2 {[%emt 0:00:07]} Bb7 {[%emt 0:00:10]} 11. e4 {[%emt 0:00:00][%cal Be3e4,Be4e5][%mdl 32]} e5 $1 {[%emt 0:00:07]} 12. dxe5 {[%emt 0:00:20]} Nxe5 {[%emt 0:03:58]} 13. Nh4 {[%emt 0:00:10]} g6 {[%emt 0:25:09] Dodges Nf5} 14. f4 {White is slightly better.} Nc4 15. e5 {[%emt 0:13:50][%cal Oe2c4] [#] Hoping for Bxc4!} Bc5+ {[%emt 0:00:50]} 16. Kh1 {[%emt 0:02:18]} Ng4 17. Bxg4 $16 {[%emt 0:01:19]} Qxh4 {[%emt 0:13:17]} 18. Ne4 $36 {[%emt 0:07:47][%mdl 2048] White is really pushing.} Bd4 {[%emt 0:12:40][%cal Og8h8]} 19. Nf6+ {[%emt 0:05:39]} Kg7 {[%cal Oc4e5] [#]} 20. Qe4 {The board is on fire.} ({White should play} 20. Qe2 $1) 20... Bxb2 $2 {[%emt 0:05:02][%mdl 8192] Loses the game.} (20... Rfd8 $16) 21. Bxb2 $18 {[%emt 0:00:57] White is clearly winning.} Nxb2 {[%emt 0:01:02]} 22. Rf3 {[%emt 0:01:50]} h5 23. Bd7 Rab8 {[%emt 0:05:09]} 24. g3 {[%emt 0:06:20]} c5 {[%emt 0:00:04]} 25. Qe2 {[%emt 0:00:15] Weighted Error Value: White=0.62/Black=0.28 (precise) .  Loses game:     	---       	Black=1      Mistake:       	White=1     	Black=1      OK:         	White=5     	Black=5      Best:        	White=1     	Black=1} 1-0